[Event "*** Titled Tuesday 3|2 Blitz"]
[Site "Chess.com"]
[Date "2016.05.03"]
[Round "1"]
[White "PedroLeRobot"]
[Black "AkshatChandra"]
[Result "0-1"]
[WhiteElo "2302"]
[BlackElo "2713"]
[TimeControl "180+2"]
[EndTime "17:07:03 PDT"]
[Termination "AkshatChandra won by checkmate"]

1. Nf3 {[%clk 0:03:01.9]} 1... d5 {[%clk 0:02:57.5]} 2. g3 {[%clk 0:03:03.3]}
2... g6 {[%clk 0:02:58.2]} 3. Bg2 {[%clk 0:03:04.8]} 3... Bg7 {[%clk 0:02:59.9]}
4. O-O {[%clk 0:03:06.3]} 4... e5 {[%clk 0:03:01.1]} 5. d3 {[%clk 0:03:06.8]}
5... Ne7 {[%clk 0:03:00.3]} 6. e4 {[%clk 0:03:06.9]} 6... O-O {[%clk 0:03:00.9]}
7. Nc3 {[%clk 0:03:07.6]} 7... d4 {[%clk 0:02:37.7]} 8. Ne2 {[%clk 0:03:08]}
8... c5 {[%clk 0:02:39.4]} 9. Nd2 {[%clk 0:03:07.5]} 9... Nbc6 {[%clk
0:02:39.2]} 10. f4 {[%clk 0:03:08.8]} 10... f5 {[%clk 0:02:37.9]} 11. exf5
{[%clk 0:02:58.9]} 11... Nxf5 {[%clk 0:02:38.9]} 12. Ne4 {[%clk 0:02:58.8]}
12... Qb6 {[%clk 0:02:35.2]} 13. fxe5 {[%clk 0:02:54.3]} 13... Nxe5 {[%clk
0:02:34.1]} 14. Nf4 {[%clk 0:02:54.9]} 14... Ne3 {[%clk 0:02:25.5]} 15. Bxe3
{[%clk 0:02:55.3]} 15... dxe3 {[%clk 0:02:27.4]} 16. Nd5 {[%clk 0:02:38.9]}
16... Rxf1+ {[%clk 0:02:12.8]} 17. Qxf1 {[%clk 0:02:38.7]} 17... Qxb2 {[%clk
0:02:10.5]} 18. Re1 {[%clk 0:00:59.3]} 18... Be6 {[%clk 0:01:58.1]} 19. Ne7+
{[%clk 0:00:58.3]} 19... Kh8 {[%clk 0:01:59.2]} 20. Nxc5 {[%clk 0:00:46.1]}
20... Bg4 {[%clk 0:01:28.1]} 21. Qf4 {[%clk 0:00:40.3]} 21... Rf8 {[%clk
0:01:08.2]} 22. Qe4 {[%clk 0:00:18.3]} 22... Nf3+ {[%clk 0:01:00.2]} 23. Bxf3
{[%clk 0:00:19.1]} 23... Bxf3 {[%clk 0:01:02.1]} 24. Qc4 {[%clk 0:00:17]} 24...
b5 {[%clk 0:00:53.7]} 25. Qb3 {[%clk 0:00:17.4]} 25... Qd4 {[%clk 0:00:45.8]}
26. Ne6 {[%clk 0:00:14.2]} 26... e2+ {[%clk 0:00:47.3]} 27. Nxd4 {[%clk
0:00:15.2]} 27... Bxd4# {[%clk 0:00:49.2]} 0-1

[Event "*** Titled Tuesday 3|2 Blitz"]
[Site "Chess.com"]
[Date "2016.05.03"]
[Round "1"]
[White "pKiLz5Rn9b"]
[Black "SidArun"]
[Result "1-0"]
[WhiteElo "2408"]
[BlackElo "1968"]
[TimeControl "180+2"]
[EndTime "17:07:13 PDT"]
[Termination "pKiLz5Rn9b won by resignation"]

1. e4 {[%clk 0:03:01.4]} 1... c6 {[%clk 0:02:59.6]} 2. d4 {[%clk 0:02:59.1]}
2... d5 {[%clk 0:03:00]} 3. Nc3 {[%clk 0:02:59.9]} 3... dxe4 {[%clk 0:03:00.7]}
4. Nxe4 {[%clk 0:03:01.8]} 4... Bf5 {[%clk 0:03:01.9]} 5. Ng3 {[%clk 0:03:01.9]}
5... Bg6 {[%clk 0:03:02.8]} 6. h4 {[%clk 0:03:02.9]} 6... h6 {[%clk 0:03:03.7]}
7. Nf3 {[%clk 0:03:04.3]} 7... Nd7 {[%clk 0:03:04.5]} 8. h5 {[%clk 0:03:05.7]}
8... Bh7 {[%clk 0:03:05.6]} 9. Bd3 {[%clk 0:03:07.3]} 9... Bxd3 {[%clk
0:03:07.2]} 10. Qxd3 {[%clk 0:03:09.2]} 10... e6 {[%clk 0:03:09.1]} 11. Bd2
{[%clk 0:03:10.5]} 11... Ngf6 {[%clk 0:03:10.3]} 12. O-O-O {[%clk 0:03:11.5]}
12... Be7 {[%clk 0:03:11.6]} 13. Kb1 {[%clk 0:03:12.4]} 13... O-O {[%clk
0:03:08.9]} 14. Ne4 {[%clk 0:03:11.4]} 14... Nxe4 {[%clk 0:03:09.9]} 15. Qxe4
{[%clk 0:03:13.3]} 15... Nf6 {[%clk 0:03:11]} 16. Qe2 {[%clk 0:03:14.3]} 16...
Qb6 {[%clk 0:03:12.2]} 17. g4 {[%clk 0:03:11.3]} 17... Ba3 {[%clk 0:03:04.3]}
18. Bc1 {[%clk 0:03:11.4]} 18... Nd5 {[%clk 0:03:04.1]} 19. Qd3 {[%clk
0:03:08.5]} 19... Be7 {[%clk 0:02:57.1]} 20. g5 {[%clk 0:03:06.4]} 20... Nb4
{[%clk 0:02:54.7]} 21. Qb3 {[%clk 0:03:00.4]} 21... hxg5 {[%clk 0:02:33.7]} 22.
h6 {[%clk 0:03:00.7]} 22... g6 {[%clk 0:02:28.6]} 23. Bxg5 {[%clk 0:02:49.1]}
23... Bxg5 {[%clk 0:02:19.6]} 24. Nxg5 {[%clk 0:02:51]} 24... Nd5 {[%clk
0:02:17.7]} 25. Qf3 {[%clk 0:02:50.9]} 25... Qc7 {[%clk 0:01:56.8]} 26. c4
{[%clk 0:02:51.6]} 26... Qf4 {[%clk 0:01:50.5]} 27. Qxf4 {[%clk 0:02:26.9]}
27... Nxf4 {[%clk 0:01:50.3]} 28. Rh4 {[%clk 0:02:26.3]} 28... Nh5 {[%clk
0:01:47.9]} 29. Rg1 {[%clk 0:02:17.6]} 29... Rae8 {[%clk 0:01:47.1]} 30. Rxh5
{[%clk 0:02:12]} 30... gxh5 {[%clk 0:01:47.1]} 31. Nxe6+ {[%clk 0:02:13.2]}
31... Kh7 {[%clk 0:01:45.9]} 32. Nxf8+ {[%clk 0:02:11.6]} 32... Rxf8 {[%clk
0:01:45.7]} 33. Kc2 {[%clk 0:02:05.3]} 33... Kxh6 {[%clk 0:01:37.8]} 34. Kd3
{[%clk 0:02:05.8]} 34... Re8 {[%clk 0:01:38.1]} 35. d5 {[%clk 0:02:05.4]} 35...
h4 {[%clk 0:01:30.6]} 36. d6 {[%clk 0:01:59.4]} 36... b6 {[%clk 0:01:27.4]} 37.
c5 {[%clk 0:01:53.1]} 37... bxc5 {[%clk 0:01:25.1]} 38. Kc4 {[%clk 0:01:53.7]}
38... Re5 {[%clk 0:00:54.3]} 39. Rd1 {[%clk 0:01:53.2]} 39... Re8 {[%clk
0:00:40.6]} 40. Kxc5 {[%clk 0:01:53.5]} 40... Rd8 {[%clk 0:00:41.9]} 41. Kxc6
{[%clk 0:01:54.5]} 41... h3 {[%clk 0:00:42.8]} 42. Rh1 {[%clk 0:01:52.8]} 42...
Rc8+ {[%clk 0:00:40.6]} 43. Kd7 {[%clk 0:01:53.6]} 43... Rc2 {[%clk 0:00:41.2]}
44. Rxh3+ {[%clk 0:01:54.4]} 44... Kg6 {[%clk 0:00:43.1]} 45. Ke7 {[%clk
0:01:52.1]} 45... Re2+ {[%clk 0:00:42.1]} 46. Re3 {[%clk 0:01:52.5]} 46... Rxf2
{[%clk 0:00:43.2]} 47. d7 {[%clk 0:01:53.5]} 47... Rd2 {[%clk 0:00:44.7]} 48.
d8=Q {[%clk 0:01:53.6]} 48... Rxd8 {[%clk 0:00:46.6]} 49. Kxd8 {[%clk
0:01:55.5]} 1-0

[Event "*** Titled Tuesday 3|2 Blitz"]
[Site "Chess.com"]
[Date "2016.05.03"]
[Round "1"]
[White "Aguiar94"]
[Black "saraswathii"]
[Result "1-0"]
[WhiteElo "2397"]
[BlackElo "1960"]
[TimeControl "180+2"]
[EndTime "17:07:18 PDT"]
[Termination "Aguiar94 won by resignation"]

1. e4 {[%clk 0:02:56.1]} 1... c5 {[%clk 0:03:00.3]} 2. Nf3 {[%clk 0:02:57]} 2...
e6 {[%clk 0:03:01.2]} 3. d4 {[%clk 0:02:57.9]} 3... cxd4 {[%clk 0:03:01.5]} 4.
Nxd4 {[%clk 0:02:59.5]} 4... Nf6 {[%clk 0:03:01.8]} 5. Nc3 {[%clk 0:02:59.9]}
5... Nc6 {[%clk 0:03:01.7]} 6. Nxc6 {[%clk 0:03:00.5]} 6... bxc6 {[%clk
0:03:01.9]} 7. e5 {[%clk 0:03:01.2]} 7... Nd5 {[%clk 0:02:58.9]} 8. Ne4 {[%clk
0:03:02.7]} 8... f5 {[%clk 0:02:55.1]} 9. exf6 {[%clk 0:03:01.9]} 9... Nxf6
{[%clk 0:02:54]} 10. Nd6+ {[%clk 0:03:03.2]} 10... Bxd6 {[%clk 0:02:49.5]} 11.
Qxd6 {[%clk 0:03:05.1]} 11... Qe7 {[%clk 0:02:39.6]} 12. Bf4 {[%clk 0:03:06]}
12... Qxd6 {[%clk 0:02:39.5]} 13. Bxd6 {[%clk 0:03:05.6]} 13... Ne4 {[%clk
0:02:40.4]} 14. Ba3 {[%clk 0:03:04.5]} 14... d5 {[%clk 0:02:22.8]} 15. Bd3
{[%clk 0:02:58.8]} 15... Nf6 {[%clk 0:02:13.1]} 16. f4 {[%clk 0:02:54.2]} 16...
Kf7 {[%clk 0:02:07.6]} 17. Kd2 {[%clk 0:02:46.2]} 17... Bd7 {[%clk 0:02:01.9]}
18. Bc5 {[%clk 0:02:39.1]} 18... a5 {[%clk 0:02:01.4]} 19. a4 {[%clk 0:02:36.7]}
19... Rhe8 {[%clk 0:01:50.8]} 20. Rae1 {[%clk 0:02:33.6]} 20... g6 {[%clk
0:01:42.1]} 21. h3 {[%clk 0:02:29.8]} 21... Bc8 {[%clk 0:01:23.7]} 22. c3 {[%clk
0:02:26.6]} 22... Ba6 {[%clk 0:01:05.6]} 23. Bc2 {[%clk 0:02:26]} 23... Rab8
{[%clk 0:00:50.8]} 24. b4 {[%clk 0:01:52.7]} 24... axb4 {[%clk 0:00:51]} 25.
cxb4 {[%clk 0:01:53]} 25... Bc4 {[%clk 0:00:48.9]} 26. Kc3 {[%clk 0:01:50.4]}
26... Nh5 {[%clk 0:00:40.6]} 27. g4 {[%clk 0:01:36.2]} 27... Nxf4 {[%clk
0:00:28.1]} 28. Bd6 {[%clk 0:01:36]} 28... Ne2+ {[%clk 0:00:28.1]} 29. Kd2
{[%clk 0:01:31.5]} 29... Rbd8 {[%clk 0:00:28.1]} 30. Be5 {[%clk 0:01:28.7]}
30... d4 {[%clk 0:00:23.2]} 31. Rxe2 {[%clk 0:01:28.2]} 31... Bxe2 {[%clk
0:00:19.7]} 32. Kxe2 {[%clk 0:01:28.6]} 32... Rd5 {[%clk 0:00:21.3]} 33. Rf1+
{[%clk 0:01:26.2]} 33... Ke7 {[%clk 0:00:21.6]} 34. Bf6+ {[%clk 0:01:26.4]}
34... Kd7 {[%clk 0:00:17.9]} 35. Be4 {[%clk 0:01:27.3]} 1-0

[Event "*** Titled Tuesday 3|2 Blitz"]
[Site "Chess.com"]
[Date "2016.05.03"]
[Round "1"]
[White "EltajSafarli"]
[Black "sandropozo"]
[Result "1-0"]
[WhiteElo "2635"]
[BlackElo "2268"]
[TimeControl "180+2"]
[EndTime "17:07:25 PDT"]
[Termination "EltajSafarli won by resignation"]

1. e4 {[%clk 0:02:59.6]} 1... e6 {[%clk 0:03:00.3]} 2. d4 {[%clk 0:02:59.7]}
2... d5 {[%clk 0:03:00.9]} 3. Nc3 {[%clk 0:03:01.6]} 3... Bb4 {[%clk 0:03:00.4]}
4. e5 {[%clk 0:03:02.2]} 4... c5 {[%clk 0:02:56.5]} 5. a3 {[%clk 0:03:03.5]}
5... Bxc3+ {[%clk 0:02:57.4]} 6. bxc3 {[%clk 0:03:05.4]} 6... Ne7 {[%clk
0:02:58.2]} 7. h4 {[%clk 0:03:04.5]} 7... Qc7 {[%clk 0:02:54.3]} 8. h5 {[%clk
0:03:03.3]} 8... h6 {[%clk 0:02:55.3]} 9. Nf3 {[%clk 0:03:01.5]} 9... Nbc6
{[%clk 0:02:56.1]} 10. Rh4 {[%clk 0:03:00.1]} 10... Bd7 {[%clk 0:02:54.6]} 11.
Rg4 {[%clk 0:02:54.7]} 11... Nf5 {[%clk 0:02:54.1]} 12. Rf4 {[%clk 0:02:56.1]}
12... g5 {[%clk 0:02:26.5]} 13. hxg6 {[%clk 0:02:50.1]} 13... fxg6 {[%clk
0:02:27.4]} 14. g4 {[%clk 0:02:51.7]} 14... g5 {[%clk 0:02:28]} 15. gxf5 {[%clk
0:02:50.1]} 15... gxf4 {[%clk 0:02:28.4]} 16. f6 {[%clk 0:02:50.7]} 16... O-O-O
{[%clk 0:02:26.6]} 17. Bxf4 {[%clk 0:02:45.5]} 17... Kb8 {[%clk 0:02:19.7]} 18.
Qd2 {[%clk 0:02:40.2]} 18... Be8 {[%clk 0:02:16.1]} 19. dxc5 {[%clk 0:02:37.1]}
19... Bg6 {[%clk 0:02:07.4]} 20. Nd4 {[%clk 0:02:32.5]} 20... Nxd4 {[%clk
0:01:48.9]} 21. cxd4 {[%clk 0:02:34.4]} 21... h5 {[%clk 0:01:47]} 22. Bh3 {[%clk
0:02:28.6]} 22... Bf7 {[%clk 0:01:42.4]} 23. Rb1 {[%clk 0:02:29.1]} 23... Ka8
{[%clk 0:01:42]} 24. a4 {[%clk 0:02:22]} 24... Rdg8 {[%clk 0:01:39.3]} 25. Kf1
{[%clk 0:02:17.4]} 25... Qc6 {[%clk 0:01:33.4]} 26. Qb4 {[%clk 0:02:13.7]} 26...
Rh7 {[%clk 0:01:16.2]} 27. Qb5 {[%clk 0:02:10]} 27... Qc7 {[%clk 0:01:16.4]} 28.
a5 {[%clk 0:02:07.5]} 28... Be8 {[%clk 0:01:17]} 29. Qb4 {[%clk 0:02:03.9]}
29... Qc6 {[%clk 0:01:17.2]} 30. f3 {[%clk 0:02:01.2]} 30... Bg6 {[%clk
0:01:11.1]} 31. Rb2 {[%clk 0:01:53]} 31... Bf5 {[%clk 0:01:11.8]} 32. Bxf5
{[%clk 0:01:43.7]} 32... exf5 {[%clk 0:01:12.8]} 33. Qb5 {[%clk 0:01:45.4]}
33... Qc7 {[%clk 0:01:10.6]} 34. a6 {[%clk 0:01:41.6]} 34... bxa6 {[%clk
0:01:07.1]} 35. Qxa6 {[%clk 0:01:43.5]} 35... Rb8 {[%clk 0:00:47.6]} 36. Rxb8+
{[%clk 0:01:16.1]} 36... Kxb8 {[%clk 0:00:48]} 37. e6 {[%clk 0:01:08.9]} 37...
Qxf4 {[%clk 0:00:47.8]} 38. Qd6+ {[%clk 0:01:10.2]} 38... Qxd6 {[%clk
0:00:47.1]} 39. cxd6 {[%clk 0:01:12.1]} 1-0

[Event "*** Titled Tuesday 3|2 Blitz"]
[Site "Chess.com"]
[Date "2016.05.03"]
[Round "1"]
[White "oskariot"]
[Black "dsanchez1973"]
[Result "1-0"]
[WhiteElo "2422"]
[BlackElo "2011"]
[TimeControl "180+2"]
[EndTime "17:07:27 PDT"]
[Termination "oskariot won by resignation"]

1. e4 {[%clk 0:03:00.5]} 1... e6 {[%clk 0:02:59]} 2. d4 {[%clk 0:03:01.1]} 2...
d5 {[%clk 0:03:00.2]} 3. Nc3 {[%clk 0:03:01.8]} 3... Bb4 {[%clk 0:03:00.4]} 4.
e5 {[%clk 0:03:02.4]} 4... c5 {[%clk 0:03:01.7]} 5. a3 {[%clk 0:03:03.3]} 5...
Bxc3+ {[%clk 0:03:02.5]} 6. bxc3 {[%clk 0:03:05.2]} 6... Qc7 {[%clk 0:03:02.9]}
7. Nf3 {[%clk 0:03:06]} 7... Nc6 {[%clk 0:03:02.6]} 8. Be2 {[%clk 0:03:05.3]}
8... Nge7 {[%clk 0:03:01.8]} 9. a4 {[%clk 0:03:05.7]} 9... Nf5 {[%clk
0:03:00.8]} 10. O-O {[%clk 0:03:00.3]} 10... O-O {[%clk 0:03:01]} 11. Ba3 {[%clk
0:03:01]} 11... b6 {[%clk 0:03:00.7]} 12. dxc5 {[%clk 0:03:01.1]} 12... Nxe5
{[%clk 0:03:01.7]} 13. cxb6 {[%clk 0:02:55.9]} 13... Nxf3+ {[%clk 0:03:02.1]}
14. Bxf3 {[%clk 0:02:56.4]} 14... Qxb6 {[%clk 0:03:02.4]} 15. Bxf8 {[%clk
0:02:57]} 15... Kxf8 {[%clk 0:03:03.3]} 16. c4 {[%clk 0:02:58]} 16... Ba6 {[%clk
0:03:04.1]} 17. Be2 {[%clk 0:02:40.9]} 17... Nd4 {[%clk 0:03:04.9]} 18. Bd3
{[%clk 0:01:53.5]} 18... dxc4 {[%clk 0:03:03]} 19. Be4 {[%clk 0:01:54.3]} 19...
Rd8 {[%clk 0:03:03]} 20. Qh5 {[%clk 0:01:51.9]} 20... h6 {[%clk 0:03:02.9]} 21.
Rab1 {[%clk 0:01:43.6]} 21... Qc7 {[%clk 0:02:59.5]} 22. c3 {[%clk 0:01:30.5]}
22... Nb3 {[%clk 0:02:58.1]} 23. Rbd1 {[%clk 0:01:31.6]} 23... Re8 {[%clk
0:02:54.8]} 24. Qf3 {[%clk 0:01:15.8]} 24... Nc5 {[%clk 0:02:51.7]} 25. Bc6
{[%clk 0:01:15.9]} 25... Rc8 {[%clk 0:02:48.2]} 26. Bb5 {[%clk 0:01:14.4]} 26...
Bb7 {[%clk 0:02:45.7]} 27. Qg3 {[%clk 0:01:12.5]} 27... Nd3 {[%clk 0:02:45.2]}
28. Qxc7 {[%clk 0:01:12]} 28... Rxc7 {[%clk 0:02:43.4]} 29. Rb1 {[%clk
0:01:01.6]} 29... Nf4 {[%clk 0:02:39.5]} 30. f3 {[%clk 0:00:59.2]} 30... Ne2+
{[%clk 0:02:38]} 31. Kf2 {[%clk 0:00:59.9]} 31... Nxc3 {[%clk 0:02:39.1]} 32.
Rbc1 {[%clk 0:01:01.1]} 32... Nxb5 {[%clk 0:02:30]} 33. axb5 {[%clk 0:01:01.5]}
33... Bd5 {[%clk 0:02:31.9]} 34. Rc3 {[%clk 0:00:57.9]} 34... Rb7 {[%clk
0:02:32.3]} 35. Rb1 {[%clk 0:00:56.5]} 35... Ke7 {[%clk 0:02:34.2]} 36. Ke3
{[%clk 0:00:57]} 36... Kd6 {[%clk 0:02:35.5]} 37. Ra3 {[%clk 0:00:57.3]} 37...
Kc5 {[%clk 0:02:36]} 38. Ra5 {[%clk 0:00:58.5]} 38... Kb6 {[%clk 0:02:34.4]} 39.
Rba1 {[%clk 0:00:59.2]} 39... e5 {[%clk 0:02:29.8]} 40. Ra6+ {[%clk 0:00:45.8]}
40... Kxb5 {[%clk 0:02:29.6]} 41. R1a5+ {[%clk 0:00:45.6]} 41... Kb4 {[%clk
0:02:27]} 42. Rxd5 {[%clk 0:00:47.5]} 42... c3 {[%clk 0:02:27.8]} 43. Rc6 {[%clk
0:00:40.2]} 43... a5 {[%clk 0:02:28.2]} 44. Rdc5 {[%clk 0:00:38]} 44... a4
{[%clk 0:02:26]} 45. Rc4+ {[%clk 0:00:39.1]} 45... Kb3 {[%clk 0:02:27]} 46.
Rxc3+ {[%clk 0:00:40.2]} 46... Kb2 {[%clk 0:02:28.9]} 47. Rc2+ {[%clk
0:00:41.3]} 47... Kb3 {[%clk 0:02:29.9]} 48. R6c3+ {[%clk 0:00:42.6]} 48... Kb4
{[%clk 0:02:31.2]} 49. Rc7 {[%clk 0:00:37]} 49... Rb6 {[%clk 0:02:30.7]} 50.
Rxf7 {[%clk 0:00:36.6]} 50... a3 {[%clk 0:02:31.2]} 51. Rxg7 {[%clk 0:00:34.6]}
51... Kb3 {[%clk 0:02:31.7]} 52. Rd2 {[%clk 0:00:30.9]} 52... Ra6 {[%clk
0:02:29.2]} 53. Rb7+ {[%clk 0:00:31.4]} 53... Kc4 {[%clk 0:02:29.1]} 54. Rc2+
{[%clk 0:00:30.5]} 54... Kd5 {[%clk 0:02:29.7]} 55. Rb5+ {[%clk 0:00:30.9]}
55... Kd6 {[%clk 0:02:30.2]} 56. Ra2 {[%clk 0:00:32]} 1-0

[Event "*** Titled Tuesday 3|2 Blitz"]
[Site "Chess.com"]
[Date "2016.05.03"]
[Round "1"]
[White "GrigorGrigorov"]
[Black "andryusha"]
[Result "1-0"]
[WhiteElo "2543"]
[BlackElo "2185"]
[TimeControl "180+2"]
[EndTime "17:07:35 PDT"]
[Termination "GrigorGrigorov won by checkmate"]

1. d4 {[%clk 0:03:01.1]} 1... d5 {[%clk 0:02:59.2]} 2. Nf3 {[%clk 0:03:01]} 2...
Nf6 {[%clk 0:02:58.7]} 3. c4 {[%clk 0:03:00.3]} 3... c6 {[%clk 0:02:59.7]} 4. e3
{[%clk 0:02:57.7]} 4... e6 {[%clk 0:02:59.8]} 5. Nc3 {[%clk 0:02:57]} 5... Nbd7
{[%clk 0:03:00.7]} 6. Qc2 {[%clk 0:02:58]} 6... a6 {[%clk 0:03:02.1]} 7. Bd3
{[%clk 0:02:53.4]} 7... dxc4 {[%clk 0:03:02.7]} 8. Bxc4 {[%clk 0:02:54]} 8... b5
{[%clk 0:03:04.4]} 9. Be2 {[%clk 0:02:51]} 9... Bb7 {[%clk 0:03:04.5]} 10. e4
{[%clk 0:02:50.3]} 10... c5 {[%clk 0:03:03.3]} 11. e5 {[%clk 0:02:34.2]} 11...
cxd4 {[%clk 0:03:03.2]} 12. exf6 {[%clk 0:02:31.4]} 12... dxc3 {[%clk
0:03:03.3]} 13. fxg7 {[%clk 0:02:25.6]} 13... Bxg7 {[%clk 0:03:01.3]} 14. bxc3
{[%clk 0:02:26.1]} 14... Rc8 {[%clk 0:02:54.5]} 15. Bd2 {[%clk 0:02:23.1]} 15...
O-O {[%clk 0:02:43.7]} 16. O-O {[%clk 0:02:22.6]} 16... b4 {[%clk 0:02:40.4]}
17. Ng5 {[%clk 0:02:11.8]} 17... Nf6 {[%clk 0:02:32.1]} 18. c4 {[%clk
0:02:04.3]} 18... h6 {[%clk 0:02:27.5]} 19. Nf3 {[%clk 0:02:04.2]} 19... a5
{[%clk 0:02:21.4]} 20. Rad1 {[%clk 0:02:04.3]} 20... Qc7 {[%clk 0:02:19.8]} 21.
Qc1 {[%clk 0:02:04.3]} 21... h5 {[%clk 0:01:48.2]} 22. Bh6 {[%clk 0:01:58.3]}
22... Ne4 {[%clk 0:01:47.5]} 23. Bxg7 {[%clk 0:01:57]} 23... Kxg7 {[%clk
0:01:49]} 24. Bd3 {[%clk 0:01:57.2]} 24... f6 {[%clk 0:01:37.1]} 25. Rde1 {[%clk
0:01:52.4]} 25... Nc3 {[%clk 0:01:27.7]} 26. Nd4 {[%clk 0:01:52.1]} 26... Rfe8
{[%clk 0:01:11.9]} 27. Nxe6+ {[%clk 0:01:48.7]} 27... Rxe6 {[%clk 0:01:12.6]}
28. Rxe6 {[%clk 0:01:50.3]} 28... Rd8 {[%clk 0:00:57.7]} 29. Qe3 {[%clk
0:01:42.6]} 29... Rd7 {[%clk 0:00:51.2]} 30. Re1 {[%clk 0:01:40.3]} 30... Rf7
{[%clk 0:00:46.3]} 31. f4 {[%clk 0:01:33.2]} 31... h4 {[%clk 0:00:26.4]} 32. Qf2
{[%clk 0:01:24]} 32... Bc8 {[%clk 0:00:25.5]} 33. Re8 {[%clk 0:01:10.9]} 33...
Bd7 {[%clk 0:00:21.5]} 34. Qxh4 {[%clk 0:01:05.8]} 34... Bxe8 {[%clk 0:00:21.5]}
35. Rxe8 {[%clk 0:01:06.1]} 35... f5 {[%clk 0:00:18.2]} 36. Qg5+ {[%clk
0:00:54.3]} 36... Kh7 {[%clk 0:00:18.2]} 37. Qg8+ {[%clk 0:00:55.1]} 37... Kh6
{[%clk 0:00:19]} 38. Re6+ {[%clk 0:00:55.3]} 38... Kh5 {[%clk 0:00:17.8]} 39.
Qg5# {[%clk 0:00:55.9]} 1-0

[Event "*** Titled Tuesday 3|2 Blitz"]
[Site "Chess.com"]
[Date "2016.05.03"]
[Round "1"]
[White "FearNoEvil12"]
[Black "bugsbunny444"]
[Result "0-1"]
[WhiteElo "1930"]
[BlackElo "2395"]
[TimeControl "180+2"]
[EndTime "17:07:39 PDT"]
[Termination "bugsbunny444 won by checkmate"]

1. e4 {[%clk 0:01:39.1]} 1... e6 {[%clk 0:03:00.7]} 2. d4 {[%clk 0:01:38.3]}
2... d5 {[%clk 0:03:01.6]} 3. Nc3 {[%clk 0:01:38.5]} 3... Nf6 {[%clk 0:03:02.6]}
4. Qd3 {[%clk 0:01:39.6]} 4... c5 {[%clk 0:02:54.5]} 5. e5 {[%clk 0:01:39.2]}
5... Nfd7 {[%clk 0:02:51.8]} 6. Nge2 {[%clk 0:01:39.7]} 6... Nc6 {[%clk
0:02:48.8]} 7. dxc5 {[%clk 0:01:36.1]} 7... Ndxe5 {[%clk 0:02:40.6]} 8. Qg3
{[%clk 0:01:36.2]} 8... a6 {[%clk 0:02:20.1]} 9. Bf4 {[%clk 0:01:34.9]} 9... Ng6
{[%clk 0:02:12.8]} 10. O-O-O {[%clk 0:01:33.9]} 10... Bxc5 {[%clk 0:02:07.8]}
11. Ne4 {[%clk 0:01:27.9]} 11... Be7 {[%clk 0:01:49.5]} 12. Nd6+ {[%clk
0:01:24.6]} 12... Kf8 {[%clk 0:01:49]} 13. Ne4 {[%clk 0:01:05.8]} 13... Qa5
{[%clk 0:01:41.8]} 14. N4c3 {[%clk 0:01:00]} 14... Nxf4 {[%clk 0:01:32]} 15.
Nxf4 {[%clk 0:00:59.5]} 15... d4 {[%clk 0:01:27]} 16. Ne4 {[%clk 0:00:53.8]}
16... Qxa2 {[%clk 0:01:15.3]} 17. Nh5 {[%clk 0:00:50.7]} 17... Qa1+ {[%clk
0:01:01.1]} 18. Kd2 {[%clk 0:00:48.7]} 18... Qa5+ {[%clk 0:01:01.9]} 19. Kc1
{[%clk 0:00:49]} 19... Qxh5 {[%clk 0:01:02.6]} 20. Bd3 {[%clk 0:00:43.3]} 20...
Qa5 {[%clk 0:00:42.7]} 21. Kb1 {[%clk 0:00:42.9]} 21... e5 {[%clk 0:00:36.1]}
22. f4 {[%clk 0:00:40.2]} 22... Be6 {[%clk 0:00:32.9]} 23. b3 {[%clk 0:00:36.4]}
23... Bb4 {[%clk 0:00:21.4]} 24. Ng5 {[%clk 0:00:15.9]} 24... Bc3 {[%clk
0:00:19.2]} 25. Nxe6+ {[%clk 0:00:15.2]} 25... fxe6 {[%clk 0:00:20.4]} 26. fxe5
{[%clk 0:00:10.9]} 26... Qa1# {[%clk 0:00:21]} 0-1

[Event "*** Titled Tuesday 3|2 Blitz"]
[Site "Chess.com"]
[Date "2016.05.03"]
[Round "1"]
[White "Noukii"]
[Black "pedromartinez91"]
[Result "1-0"]
[WhiteElo "2724"]
[BlackElo "2332"]
[TimeControl "180+2"]
[EndTime "17:07:46 PDT"]
[Termination "Noukii won by resignation"]

1. d4 {[%clk 0:02:51.5]} 1... d5 {[%clk 0:02:58.4]} 2. Nf3 {[%clk 0:02:50.9]}
2... Nf6 {[%clk 0:02:57.8]} 3. c4 {[%clk 0:02:52.4]} 3... e6 {[%clk 0:02:57.1]}
4. g3 {[%clk 0:02:50.2]} 4... Be7 {[%clk 0:02:55.6]} 5. Bg2 {[%clk 0:02:51.6]}
5... O-O {[%clk 0:02:57.1]} 6. O-O {[%clk 0:02:53.3]} 6... dxc4 {[%clk 0:02:58]}
7. Qc2 {[%clk 0:02:54.9]} 7... a6 {[%clk 0:02:58.6]} 8. a4 {[%clk 0:02:54.4]}
8... Bd7 {[%clk 0:02:59.4]} 9. Qxc4 {[%clk 0:02:54.4]} 9... Bc6 {[%clk
0:03:00.1]} 10. Bg5 {[%clk 0:02:55.3]} 10... a5 {[%clk 0:02:59.4]} 11. Nc3
{[%clk 0:02:49]} 11... Ra6 {[%clk 0:02:55.5]} 12. Rad1 {[%clk 0:02:04.9]} 12...
Rb6 {[%clk 0:02:55.1]} 13. Qa2 {[%clk 0:02:05.9]} 13... Rb4 {[%clk 0:02:30.7]}
14. e3 {[%clk 0:01:54.8]} 14... Nd5 {[%clk 0:02:06.2]} 15. Bxe7 {[%clk
0:01:55.2]} 15... Qxe7 {[%clk 0:01:45.6]} 16. Ne5 {[%clk 0:01:53.1]} 16... Nxc3
{[%clk 0:00:59.5]} 17. bxc3 {[%clk 0:01:53.1]} 17... Bxg2 {[%clk 0:00:44.7]} 18.
Kxg2 {[%clk 0:01:55]} 18... Rb6 {[%clk 0:00:45]} 19. Rb1 {[%clk 0:01:51.2]}
19... Rxb1 {[%clk 0:00:44.9]} 20. Rxb1 {[%clk 0:01:53.1]} 20... b6 {[%clk
0:00:42.2]} 21. Qc4 {[%clk 0:01:53.2]} 21... Qd6 {[%clk 0:00:40.6]} 22. e4
{[%clk 0:01:36.7]} 22... Nd7 {[%clk 0:00:21.6]} 23. Nd3 {[%clk 0:01:32.4]} 23...
f6 {[%clk 0:00:15]} 24. Nf4 {[%clk 0:01:24.7]} 24... Re8 {[%clk 0:00:15.7]} 25.
Re1 {[%clk 0:01:25.3]} 25... Kh8 {[%clk 0:00:15.2]} 26. h4 {[%clk 0:01:22.3]}
26... e5 {[%clk 0:00:15.3]} 27. Nd5 {[%clk 0:01:23]} 27... c6 {[%clk 0:00:16.3]}
28. Ne3 {[%clk 0:01:16.3]} 28... exd4 {[%clk 0:00:16.8]} 29. Nf5 {[%clk
0:01:14.9]} 29... Qe6 {[%clk 0:00:15.7]} 30. Qxe6 {[%clk 0:01:14.4]} 30... Rxe6
{[%clk 0:00:16]} 31. cxd4 {[%clk 0:01:16.3]} 31... g6 {[%clk 0:00:16.6]} 32. Nh6
{[%clk 0:01:17.5]} 32... Kg7 {[%clk 0:00:16.2]} 33. Ng4 {[%clk 0:01:17.4]} 33...
f5 {[%clk 0:00:17.3]} 34. Ne3 {[%clk 0:01:18.1]} 34... Rxe4 {[%clk 0:00:18.2]}
35. Rc1 {[%clk 0:01:17.7]} 35... c5 {[%clk 0:00:18.3]} 36. dxc5 {[%clk
0:01:11.5]} 36... Nxc5 {[%clk 0:00:18.8]} 37. Nd5 {[%clk 0:01:13.1]} 37... Rxa4
{[%clk 0:00:18.3]} 38. Nxb6 {[%clk 0:01:14.3]} 38... Nd3 {[%clk 0:00:15.4]} 39.
Rc7+ {[%clk 0:01:14.2]} 39... Kh6 {[%clk 0:00:15.5]} 40. Nxa4 {[%clk 0:01:16.1]}
1-0